bitfinex-derivatives/quotes_BTCF0:USTF0_20250822
["timestamp","ask_amount","ask_price","bid_price","bid_amount"]
[1755831965873,0.08034,113310.0,113300.0,1.62400558]
[1755831966076,0.35841779,113310.0,113300.0,1.62400558]
[1755831966268,0.08034,113310.0,113300.0,1.06785]
[1755831966464,0.06668,113310.0,113300.0,1.34570585]
[1755831966965,0.06668,113310.0,113300.0,1.34490585]
[1755831967165,0.08034,113310.0,113300.0,1.06705]
[1755831967363,0.08034,113310.0,113300.0,1.34570585]
[1755831967769,0.08034,113310.0,113300.0,1.06705]
[1755831967770,0.09665,113310.0,113300.0,1.06705]
[1755831967964,0.11893,113310.0,113300.0,0.45725]
[1755831968173,0.11893,113310.0,113300.0,0.73510585]
[1755831968568,0.02276,113310.0,113300.0,0.73510585]
[1755831970081,0.02276,113310.0,113300.0,0.82338675]
[1755831970278,0.02276,113310.0,113300.0,0.73510585]
[1755831970477,0.06668,113310.0,113300.0,0.73510585]
[1755831970682,0.09665,113310.0,113300.0,0.73510585]
[1755831972984,0.09665,113310.0,113300.0,0.45725]
[1755831973179,0.09665,113310.0,113300.0,0.73510585]
[1755831979681,0.04899,113320.0,113300.0,0.73510585]
[1755831979885,0.10061932,113320.0,113310.0,0.73376585]
[1755831980585,0.11646932,113320.0,113310.0,0.73376585]
[1755831981600,0.11746932,113320.0,113310.0,0.73376585]
[1755831981795,0.09857,113320.0,113310.0,0.73376585]
[1755831983894,0.11752135,113320.0,113310.0,0.73376585]
[1755831985590,0.01995135,113320.0,113310.0,1.0116217]
[1755831985790,0.001,113320.0,113310.0,1.0116217]
[1755831985997,0.001,113320.0,113310.0,0.73376585]
[1755831986294,0.001,113320.0,113310.0,1.0116217]
[1755831987192,0.001,113320.0,113310.0,1.0998948]
[1755831987392,0.01810428,113330.0,113310.0,1.0495448]
[1755831987592,0.01810428,113330.0,113320.0,0.73376585]
[1755831988596,0.03705799,113330.0,113320.0,0.73376585]
[1755831990203,0.03905799,113330.0,113320.0,0.73376585]
[1755831992898,0.12059,113350.0,113340.0,0.04476]
[1755831993104,0.13834806,113350.0,113340.0,0.45591]
[1755831993496,0.21035878,113350.0,113340.0,0.45591]
[1755831994302,0.22427333,113350.0,113340.0,0.45591]
[1755831995905,0.22427333,113350.0,113340.0,0.73376585]
[1755831996105,0.05548806,113350.0,113340.0,0.75347361]
[1755831997309,0.05048806,113350.0,113340.0,0.75347361]
[1755831998508,0.05932017,113350.0,113340.0,0.75347361]
[1755831999005,0.09395017,113350.0,113340.0,0.75347361]
[1755831999895,0.05932017,113350.0,113340.0,0.75347361]
[1755832000308,0.01775806,113350.0,113340.0,0.47561776]
[1755832000508,0.01775806,113350.0,113340.0,0.75347361]
[1755832000908,2.14967391,113360.0,113340.0,0.75347361]
[1755832001102,2.99602391,113360.0,113350.0,0.09511]
[1755832003011,2.99802391,113360.0,113350.0,0.09511]
[1755832003410,2.63722391,113360.0,113350.0,0.73376585]
[1755832003609,2.64594362,113360.0,113350.0,0.73376585]
[1755832004112,0.86222,113360.0,113350.0,0.73376585]
[1755832004311,0.05058,113360.0,113350.0,0.73376585]
[1755832004514,0.02481,113360.0,113350.0,0.73376585]
[1755832004913,0.04367178,113360.0,113350.0,0.73376585]
[1755832005309,0.02086178,113360.0,113350.0,0.73376585]
[1755832006508,0.002,113360.0,113350.0,0.82280785]
[1755832006713,0.94966331,113380.0,113370.0,0.04156]
[1755832006911,0.15696012,113380.0,113370.0,0.72856585]
[1755832007516,0.22823906,113380.0,113370.0,0.72856585]
[1755832007906,0.22846906,113380.0,113370.0,0.72856585]
[1755832008102,0.23346906,113380.0,113370.0,0.72856585]
[1755832008306,0.22486961,113380.0,113370.0,0.72856585]
[1755832008910,0.21595575,113380.0,113370.0,0.72856585]
[1755832010611,0.18109575,113380.0,113370.0,0.72856585]
[1755832010913,0.10729681,113380.0,113370.0,0.72856585]
[1755832012010,0.14624681,113380.0,113370.0,0.45071]
[1755832012215,0.14624681,113380.0,113370.0,0.72856585]
[1755832013515,0.15527545,113380.0,113370.0,0.72856585]
[1755832013711,0.15327545,113380.0,113370.0,0.45071]
[1755832013917,0.15327545,113380.0,113370.0,0.72856585]
[1755832014218,0.14424681,113380.0,113370.0,0.72856585]
[1755832015510,0.10529681,113380.0,113370.0,0.72856585]
[1755832016321,0.12966681,113380.0,113370.0,0.72856585]
[1755832016510,0.15325953,113380.0,113370.0,0.72856585]
[1755832022028,0.14424681,113380.0,113370.0,0.72856585]
[1755832022230,0.10529681,113380.0,113370.0,0.72856585]
[1755832022918,0.02185681,113380.0,113370.0,1.0064217]
[1755832023119,0.02185681,113380.0,113370.0,1.0946484]
[1755832023422,0.003,113380.0,113370.0,1.4554484]
[1755832023926,0.003,113380.0,113370.0,1.3672217]
[1755832024225,0.003,113380.0,113370.0,1.37620611]
[1755832024529,0.95685903,113400.0,113390.0,0.04221]
[1755832024730,0.9756768,113400.0,113390.0,0.36796585]
[1755832025029,0.1646368,113400.0,113390.0,0.36796585]
[1755832025224,0.1646368,113400.0,113390.0,0.09011]
[1755832025430,0.1646368,113400.0,113390.0,0.36796585]
[1755832025727,0.1646368,113400.0,113390.0,0.09011]
[1755832026429,0.1646368,113400.0,113390.0,0.36796585]
[1755832026928,0.1686368,113400.0,113390.0,0.36796585]
[1755832027427,0.1646368,113400.0,113390.0,0.09011]
[1755832027625,0.1666368,113400.0,113390.0,0.09011]
[1755832028428,0.44449265,113400.0,113390.0,0.09011]
[1755832028631,0.44449265,113400.0,113390.0,0.04814]
[1755832029130,0.44449265,113400.0,113390.0,0.07518]
[1755832029334,0.44449265,113400.0,113390.0,0.09011]
[1755832029932,0.1666368,113400.0,113390.0,0.09011]
[1755832030133,0.44449265,113400.0,113390.0,0.09011]
[1755832030835,0.1666368,113400.0,113390.0,0.09011]
[1755832031130,0.44449265,113400.0,113390.0,0.09011]
[1755832032038,0.1666368,113400.0,113390.0,0.09011]
[1755832032334,0.44449265,113400.0,113390.0,0.09011]
[1755832035036,0.1666368,113400.0,113390.0,0.09011]
[1755832035431,0.44449265,113400.0,113390.0,0.09011]
[1755832038637,0.1666368,113400.0,113390.0,0.09011]
[1755832038840,0.44449265,113400.0,113390.0,0.09011]
[1755832040336,0.44449265,113400.0,113390.0,0.06307]
[1755832041137,0.44449265,113400.0,113390.0,0.07971]
[1755832041530,0.44449265,113400.0,113390.0,0.09011]
[1755832041834,0.11674,113390.0,113380.0,0.72872585]
[1755832042034,0.13555777,113390.0,113380.0,0.72872585]
[1755832044437,0.13555777,113390.0,113380.0,0.72952585]
[1755832044734,0.09772777,113390.0,113380.0,0.72952585]
[1755832045141,0.09772777,113390.0,113380.0,0.73452585]
[1755832045537,0.11255777,113390.0,113380.0,0.73452585]
[1755832045732,0.13555777,113390.0,113380.0,0.73452585]
[1755832045933,0.13555777,113390.0,113380.0,0.73752585]
[1755832046341,0.13555777,113390.0,113380.0,1.01459942]
[1755832046541,0.13555777,113390.0,113380.0,1.01159942]
[1755832046842,0.13555777,113390.0,113380.0,1.01259942]
[1755832047243,0.13555777,113390.0,113380.0,1.00959942]
[1755832048351,0.09772777,113390.0,113380.0,0.73213405]
[1755832048939,0.06588777,113390.0,113380.0,0.73213405]
[1755832049342,0.13555777,113390.0,113380.0,0.73213405]
[1755832050539,0.12072777,113390.0,113380.0,0.73213405]
[1755832050845,0.04022777,113390.0,113380.0,0.73213405]
[1755832051038,0.01881777,113390.0,113380.0,1.54205405]
[1755832051237,0.01881777,113390.0,113380.0,1.58290295]
[1755832051438,0.01881777,113390.0,113380.0,1.59330295]
[1755832051638,0.01881777,113390.0,113380.0,1.36344108]
[1755832051840,0.01881777,113390.0,113380.0,1.67787513]
[1755832053140,0.88039,113410.0,113380.0,1.63050513]
[1755832053344,0.88039,113410.0,113400.0,1.0057981]
[1755832053345,0.10353566,113410.0,113400.0,1.0057981]
[1755832053544,0.06570566,113410.0,113400.0,0.72833405]
[1755832053846,0.04922566,113410.0,113400.0,1.0057981]
[1755832054042,0.04922566,113410.0,113400.0,0.72833405]
[1755832054440,0.01863566,113410.0,113400.0,1.53905405]
[1755832054846,0.04004566,113410.0,113400.0,1.53905405]
[1755832055046,0.08106566,113410.0,113400.0,1.53905405]
[1755832055853,0.13537566,113410.0,113400.0,0.45087]
[1755832056051,0.13537566,113410.0,113400.0,0.44047]
[1755832056236,0.13537566,113410.0,113400.0,0.09007]
[1755832056441,0.41283971,113410.0,113400.0,0.09007]
[1755832056842,0.41363971,113410.0,113400.0,0.04896]
[1755832057745,1.22431971,113410.0,113400.0,0.06303]
[1755832057946,1.22431971,113410.0,113400.0,0.07967]
[1755832058147,1.22431971,113410.0,113400.0,0.09007]
[1755832058946,0.94685566,113410.0,113400.0,0.09007]
[1755832059344,0.94605566,113410.0,113400.0,0.09007]
[1755832060950,0.94605566,113410.0,113400.0,0.07967]
[1755832061149,0.94605566,113410.0,113400.0,0.09007]
[1755832062448,0.13537566,113410.0,113400.0,0.72833405]
[1755832064348,0.09754566,113410.0,113400.0,0.72833405]
[1755832065253,0.04004566,113410.0,113400.0,1.0065981]
[1755832065949,0.02141,113410.0,113400.0,1.0065981]
[1755832067154,0.05597,113410.0,113400.0,0.72833405]
[1755832067354,0.06515,113410.0,113400.0,0.72833405]
[1755832067554,0.06515,113410.0,113400.0,0.73533405]
[1755832068053,0.12039,113410.0,113400.0,0.73533405]
[1755832068254,0.12039,113410.0,113400.0,0.98633405]
[1755832069656,0.1062,113410.0,113400.0,0.98633405]
[1755832069854,0.1062,113410.0,113400.0,0.98133405]
[1755832070054,0.1062,113410.0,113400.0,0.98633405]
[1755832070559,0.1062,113410.0,113400.0,0.73633405]
[1755832070960,0.1062,113410.0,113400.0,0.73133405]
[1755832071155,0.1062,113410.0,113400.0,0.73633405]
[1755832072561,0.1062,113410.0,113400.0,1.54689405]
[1755832074560,0.08163,113410.0,113400.0,1.54689405]
[1755832074954,0.06515,113410.0,113400.0,1.54689405]
[1755832076263,0.03059,113410.0,113400.0,1.54689405]
[1755832076458,0.31597518,113420.0,113410.0,0.09111]
[1755832076651,0.28090887,113420.0,113410.0,0.72937405]
[1755832076860,0.27163887,113420.0,113410.0,0.72937405]
[1755832077059,0.24937887,113420.0,113410.0,0.72937405]
[1755832077365,0.27163887,113420.0,113410.0,0.72937405]
[1755832077664,0.04132369,113420.0,113410.0,0.75384571]
[1755832077865,0.05059369,113420.0,113410.0,0.75384571]
[1755832078061,0.08515369,113420.0,113410.0,0.75384571]
[1755832078262,0.08515369,113420.0,113410.0,2.25384571]
[1755832078967,0.13928369,113420.0,113410.0,2.25384571]
[1755832079566,0.41674774,113420.0,113410.0,0.47638166]
[1755832079764,0.41754774,113420.0,113410.0,0.10618166]
[1755832079964,1.58882774,113420.0,113410.0,0.07485166]
[1755832080266,1.83882774,113420.0,113410.0,0.007]
[1755832080461,1.83882774,113420.0,113410.0,0.006]
[1755832080662,0.0469,113400.0,113390.0,0.09111]
[1755832080863,0.13928369,113400.0,113390.0,0.09111]
[1755832081165,0.13228609,113400.0,113390.0,0.09111]
[1755832082164,0.13228609,113400.0,113390.0,0.09411]
[1755832082356,0.13228609,113400.0,113390.0,0.45491]
[1755832082761,0.13228609,113400.0,113390.0,0.73237405]
[1755832083677,0.13228609,113400.0,113390.0,0.73337405]
[1755832086979,0.13228609,113400.0,113390.0,0.45591]
[1755832087384,0.15010935,113400.0,113390.0,0.44551]
[1755832087578,0.15010935,113400.0,113390.0,0.45591]
[1755832088282,0.15010935,113400.0,113390.0,0.45291]
[1755832089783,0.15010935,113400.0,113390.0,0.45191]
[1755832090691,0.15010935,113400.0,113390.0,0.72937405]
[1755832093474,0.15010935,113400.0,113390.0,0.45191]
[1755832093674,0.15010935,113400.0,113390.0,0.72937405]
[1755832094386,0.4275734,113400.0,113390.0,0.08071]
[1755832094586,0.7883734,113400.0,113390.0,0.09111]
[1755832094787,0.4275734,113400.0,113390.0,0.09111]
[1755832096591,0.96058935,113400.0,113390.0,0.09111]
[1755832096789,1.2380534,113400.0,113390.0,0.09111]
[1755832099693,1.2380534,113400.0,113390.0,0.08071]
[1755832099893,0.96058935,113400.0,113390.0,0.09111]
[1755832100195,1.2380534,113400.0,113390.0,0.09111]
[1755832100796,0.96058935,113400.0,113390.0,0.08071]
[1755832101097,1.2380534,113400.0,113390.0,0.09111]
[1755832101396,1.2380534,113400.0,113390.0,0.06407]
[1755832101696,1.2380904,113400.0,113390.0,0.06407]
[1755832101897,1.2380904,113400.0,113390.0,0.04938]
[1755832104790,1.2380904,113400.0,113390.0,0.09095]
[1755832105192,0.96062635,113400.0,113390.0,0.09095]
[1755832105597,0.96062635,113400.0,113390.0,0.35801405]
[1755832105797,0.96062635,113400.0,113390.0,0.36841405]
[1755832107199,0.11558635,113400.0,113390.0,0.72921405]
[1755832107395,0.14807635,113400.0,113390.0,0.72921405]
[1755832108804,0.14807635,113400.0,113390.0,0.73001405]
[1755832108805,0.07682635,113400.0,113390.0,0.73001405]
[1755832109006,0.06845635,113400.0,113390.0,0.73001405]
[1755832109898,0.10060635,113400.0,113390.0,0.73001405]
[1755832111702,0.06845635,113400.0,113390.0,0.72921405]
[1755832111902,0.04935326,113400.0,113390.0,0.72921405]
[1755832112501,0.04935326,113400.0,113390.0,0.97921405]
[1755832112906,0.04935326,113400.0,113390.0,0.98221405]
[1755832113305,0.04935326,113400.0,113390.0,0.98521405]
[1755832113607,0.04935326,113400.0,113390.0,0.98221405]
[1755832113807,0.04935326,113400.0,113390.0,0.98421405]
[1755832114309,0.04935326,113400.0,113390.0,0.98221405]
[1755832115510,0.08150326,113400.0,113390.0,0.98021405]
[1755832115711,0.08150326,113400.0,113390.0,0.98121405]
[1755832117811,0.15604859,113400.0,113390.0,0.98121405]
[1755832118311,0.13693326,113400.0,113390.0,0.98121405]
[1755832118900,0.15604798,113400.0,113390.0,0.73121405]
[1755832119405,0.15604798,113400.0,113390.0,0.73021405]
[1755832119812,0.15604798,113400.0,113390.0,0.73121405]
[1755832123420,0.15604798,113400.0,113390.0,0.45375]
[1755832123922,0.15604798,113400.0,113390.0,0.73121405]
[1755832124116,0.13113798,113400.0,113390.0,0.73121405]
[1755832125017,0.11623798,113400.0,113390.0,0.73121405]
[1755832125222,0.08408798,113400.0,113390.0,0.73121405]
[1755832125720,0.11623798,113400.0,113390.0,0.73121405]
[1755832128911,0.10061798,113400.0,113390.0,0.73121405]
[1755832130825,0.06846798,113400.0,113390.0,0.73121405]
[1755832133627,0.10342798,113400.0,113390.0,0.73121405]
[1755832137429,0.05919798,113400.0,113390.0,0.73121405]
[1755832137627,0.03693798,113400.0,113390.0,0.73121405]
[1755832138529,0.03693798,113400.0,113390.0,0.98121405]
[1755832139927,0.05813798,113400.0,113390.0,0.98121405]
[1755832140631,0.10274798,113400.0,113390.0,0.98121405]
[1755832140830,0.10274798,113400.0,113390.0,0.73121405]
[1755832141425,0.10274798,113400.0,113390.0,0.73021405]
[1755832141626,0.10274798,113400.0,113390.0,0.73121405]
[1755832142826,0.15782798,113400.0,113390.0,0.45375]
[1755832143030,0.15782798,113400.0,113390.0,0.73121405]
[1755832143628,0.15782798,113400.0,113390.0,0.45375]
[1755832143826,0.15782798,113400.0,113390.0,0.73121405]
[1755832144124,0.15782798,113400.0,113390.0,0.73021405]
[1755832144834,0.15782798,113400.0,113390.0,0.72921405]
[1755832146130,0.43529203,113400.0,113390.0,0.09095]
[1755832146332,0.15782798,113400.0,113390.0,0.09095]
[1755832146534,0.15782798,113400.0,113390.0,0.36841405]
[1755832147031,0.15782798,113400.0,113390.0,0.36941405]
[1755832147438,0.15782798,113400.0,113390.0,0.38876589]
[1755832147739,0.15782798,113400.0,113390.0,0.38976589]
[1755832147939,0.15782798,113400.0,113390.0,0.11230184]
[1755832148134,0.15782798,113400.0,113390.0,0.11130184]
[1755832148436,0.15782798,113400.0,113390.0,0.11030184]
[1755832149139,0.15782798,113400.0,113390.0,0.11130184]
[1755832150433,0.15782798,113400.0,113390.0,0.38876589]
[1755832150624,0.15782798,113400.0,113390.0,0.38976589]
[1755832153637,0.15782798,113400.0,113390.0,0.11230184]
[1755832155937,0.15782798,113400.0,113390.0,0.75056589]
[1755832157347,0.03693798,113400.0,113390.0,0.75136589]
[1755832158345,0.03693798,113400.0,113390.0,1.00136589]
[1755832159043,0.03693798,113400.0,113390.0,1.00036589]
[1755832159245,0.03693798,113400.0,113390.0,1.00136589]
[1755832160448,0.03693798,113400.0,113390.0,1.00056589]
[1755832160948,0.03693798,113400.0,113390.0,1.08877689]
[1755832161146,0.03693798,113400.0,113390.0,1.00056589]
[1755832161537,0.01782326,113400.0,113390.0,1.00056589]
[1755832165152,0.01782326,113400.0,113390.0,1.08877689]
[1755832165353,0.01782326,113400.0,113390.0,1.00056589]
[1755832168754,0.03770815,113400.0,113390.0,1.00056589]
[1755832169757,0.03770815,113400.0,113390.0,1.08877719]
[1755832170051,0.04117217,113420.0,113410.0,0.01549]
[1755832170241,0.046,113420.0,113410.0,1.89282455]
[1755832170440,0.02302,113420.0,113410.0,2.2580969]
[1755832170645,0.05586,113430.0,113420.0,0.06357]
[1755832170953,0.05586,113430.0,113420.0,0.9789107]
[1755832172155,0.05886,113430.0,113420.0,0.9789107]
[1755832172355,0.05886,113430.0,113420.0,0.7016049]
[1755832173152,0.06086,113430.0,113420.0,0.7016049]
[1755832173853,0.09424,113430.0,113420.0,0.7016049]
[1755832174251,0.06086,113430.0,113420.0,0.7016049]
[1755832174451,0.02802,113430.0,113420.0,0.7016049]
[1755832174847,0.051,113430.0,113420.0,0.7016049]
[1755832175046,0.06086,113430.0,113420.0,0.7016049]
[1755832175244,0.09424,113430.0,113420.0,0.7016049]
[1755832178356,0.005,113430.0,113420.0,0.7016049]
[1755832179858,0.005,113430.0,113420.0,0.7897928]
[1755832181162,0.005,113430.0,113420.0,0.7016049]
[1755832181360,0.005,113430.0,113420.0,0.7897928]
[1755832187162,0.002,113430.0,113420.0,0.7897928]
[1755832187362,0.002,113430.0,113420.0,1.0427928]
[1755832187557,0.09880671,113440.0,113430.0,0.03753]
[1755832187763,0.10835671,113440.0,113430.0,1.5119349]
[1755832189362,0.08899671,113440.0,113430.0,1.5119349]
[1755832189559,0.13813671,113440.0,113430.0,1.5118949]
[1755832192271,0.13813671,113440.0,113430.0,1.58302258]
[1755832192566,0.15787106,113440.0,113430.0,1.58302258]
[1755832192755,0.13813671,113440.0,113430.0,1.58302258]
[1755832193367,0.15786963,113440.0,113430.0,1.58302258]
[1755832194260,0.15786963,113440.0,113430.0,1.58300071]
[1755832194555,0.15786963,113440.0,113430.0,1.30578768]
[1755832194756,0.15786963,113440.0,113430.0,1.58300071]
[1755832195060,0.40044266,113440.0,113430.0,0.77280071]
[1755832195369,0.43508266,113440.0,113430.0,0.77280071]
[1755832195668,0.15786963,113440.0,113430.0,0.77280071]
[1755832196273,0.15786963,113440.0,113430.0,0.77282569]
[1755832198067,0.06414235,113450.0,113440.0,0.11891]
[1755832199071,0.07288034,113450.0,113440.0,0.11891]
[1755832199269,0.07288034,113450.0,113440.0,0.39614801]
[1755832199874,0.14393034,113450.0,113440.0,0.39614801]
[1755832200370,0.14393034,113450.0,113440.0,0.11891]
[1755832200877,0.12026034,113450.0,113440.0,0.39614801]
[1755832201369,0.14393034,113450.0,113440.0,0.39614801]
[1755832202059,0.14393034,113450.0,113440.0,0.11891]
[1755832208376,0.14393034,113450.0,113440.0,0.39614801]
[1755832208874,0.14393034,113450.0,113440.0,0.11891]
[1755832209874,0.16407372,113450.0,113440.0,0.11891]
[1755832211680,0.44131173,113450.0,113440.0,0.07274]
[1755832211979,0.44131173,113450.0,113440.0,0.11891]
[1755832212378,0.16407372,113450.0,113440.0,0.11891]
[1755832212578,0.44131173,113450.0,113440.0,0.11891]
[1755832213785,0.80211173,113450.0,113440.0,0.11891]
[1755832215481,0.80211173,113450.0,113440.0,0.08676]
[1755832216281,0.80213467,113450.0,113440.0,0.08676]
[1755832216781,0.80213467,113450.0,113440.0,0.11891]
[1755832217083,0.52487372,113450.0,113440.0,0.11891]
[1755832217283,0.80213467,113450.0,113440.0,0.11891]
[1755832219589,0.52487372,113450.0,113440.0,0.11891]
[1755832219882,0.80213467,113450.0,113440.0,0.11891]
[1755832220986,1.32939562,113450.0,113430.0,0.01432]
[1755832221181,1.4818519,113440.0,113430.0,0.08643]
[1755832221383,1.50199528,113440.0,113430.0,0.11971]
[1755832221689,1.50199528,113440.0,113430.0,0.39697095]
[1755832221887,1.50199528,113440.0,113430.0,0.11971]
[1755832222080,1.50199528,113440.0,113430.0,0.39697095]
[1755832222391,1.50199528,113440.0,113430.0,0.64797095]
[1755832223186,1.50199528,113440.0,113430.0,0.64897095]
[1755832223989,1.86279528,113440.0,113430.0,0.28606]
[1755832228085,1.86279528,113440.0,113430.0,0.30762]
[1755832231287,1.86279528,113440.0,113430.0,0.28606]
[1755832231488,1.86279528,113440.0,113430.0,0.252]
[1755832231797,2.11279528,113440.0,113430.0,0.002]
[1755832233391,2.39105623,113440.0,113430.0,0.001]
[1755832233592,2.11379528,113440.0,113430.0,0.001]
[1755832234388,2.11379528,113440.0,113420.0,0.02434]
[1755832234587,0.75535095,113430.0,113420.0,0.03406]
[1755832234893,0.77549433,113430.0,113420.0,0.03406]
[1755832235693,1.05275528,113430.0,113420.0,0.03406]
[1755832235891,0.77549433,113430.0,113420.0,0.03406]
[1755832236287,1.05275528,113430.0,113420.0,0.03406]
[1755832237401,0.77549433,113430.0,113420.0,0.03406]
[1755832238092,0.77549433,113430.0,113420.0,0.03506]
[1755832238494,0.77549433,113430.0,113420.0,0.03406]
[1755832238788,0.06938,113420.0,113410.0,0.69619145]
[1755832238988,1.22477433,113420.0,113410.0,0.4999805]
[1755832239492,1.22477433,113420.0,113410.0,0.7499805]
[1755832240597,1.22477433,113420.0,113410.0,1.02824145]
[1755832240896,1.50203528,113420.0,113410.0,1.02824145]
[1755832241594,1.50203528,113420.0,113410.0,1.02924145]
[1755832241798,0.94751338,113420.0,113410.0,1.02924145]
[1755832241999,1.50203528,113420.0,113410.0,0.7519805]
[1755832243291,1.50203528,113420.0,113410.0,0.3579005]
[1755832243497,1.50203528,113420.0,113410.0,0.33843]
[1755832244297,1.50203528,113420.0,113410.0,0.37171]
[1755832245100,1.86283528,113420.0,113410.0,0.37171]
[1755832252603,1.30831338,113420.0,113410.0,0.37171]
[1755832252806,1.86283528,113420.0,113410.0,0.37171]
[1755832253904,1.86283528,113420.0,113410.0,0.39098009]
[1755832254894,1.05275528,113420.0,113410.0,0.39098009]
[1755832255095,1.50211528,113420.0,113410.0,0.75178009]
[1755832255600,1.50211528,113420.0,113410.0,1.02904104]
[1755832255794,1.86291528,113420.0,113410.0,0.39098009]
[1755832255995,1.86291528,113420.0,113410.0,0.35770009]
[1755832256199,1.86291528,113420.0,113410.0,0.38973009]
[1755832256401,1.30839338,113420.0,113410.0,0.38973009]
[1755832256602,1.86291528,113420.0,113410.0,0.38973009]
[1755832258404,1.86291528,113420.0,113410.0,0.35770009]
[1755832258806,1.86291528,113420.0,113410.0,0.38973009]
[1755832260214,1.30839338,113420.0,113410.0,0.38973009]
[1755832260410,1.86291528,113420.0,113410.0,0.38973009]
[1755832260820,1.86291528,113420.0,113410.0,0.66699104]
[1755832261112,1.30839338,113420.0,113410.0,0.38973009]
[1755832261315,1.86291528,113420.0,113410.0,0.38973009]
[1755832270222,1.50211528,113420.0,113410.0,0.38973009]
[1755832279630,0.69195528,113420.0,113410.0,0.38973009]
[1755832279926,0.69195528,113420.0,113410.0,1.02779104]
[1755832279927,0.87522338,113420.0,113410.0,1.02779104]
[1755832280135,0.89490338,113420.0,113410.0,1.02779104]
[1755832280527,1.18490433,113420.0,113410.0,1.02779104]
[1755832280727,1.20039433,113420.0,113410.0,1.02779104]
[1755832281429,0.39039433,113420.0,113410.0,1.02779104]
[1755832281636,1.20039433,113420.0,113410.0,1.02779104]
[1755832283638,0.92313338,113420.0,113410.0,1.02779104]
[1755832283833,0.02014338,113420.0,113410.0,1.55505199]
[1755832284033,0.01943338,113420.0,113410.0,1.48516199]
[1755832284239,1.17529734,113440.0,113410.0,1.48516199]
[1755832284539,1.17529734,113440.0,113430.0,0.75756095]
[1755832284927,0.13623639,113440.0,113430.0,0.75756095]
[1755832285233,0.92121639,113440.0,113430.0,0.4803]
[1755832285434,1.19847734,113440.0,113430.0,0.4803]
[1755832285631,0.92121639,113440.0,113430.0,0.75756095]
[1755832285832,1.19947734,113440.0,113430.0,0.75756095]
[1755832286228,0.01897639,113440.0,113430.0,1.6456219]
[1755832286436,0.01997639,113440.0,113430.0,1.6456219]
[1755832286630,0.01997639,113440.0,113430.0,1.66130317]
[1755832286831,0.01997639,113440.0,113430.0,1.38404222]
[1755832287028,0.002,113440.0,113430.0,1.47222232]
[1755832287238,0.002,113440.0,113430.0,1.49158446]
[1755832287641,0.002,113440.0,113430.0,1.68066531]
[1755832287840,0.001,113440.0,113430.0,1.40440436]
[1755832288430,0.001,113440.0,113430.0,1.68166531]
[1755832288634,0.90324,113450.0,113440.0,0.1195]
[1755832288940,0.90324,113450.0,113440.0,0.75756095]
[1755832289537,1.20522095,113450.0,113440.0,0.1195]
[1755832289742,1.20522095,113450.0,113440.0,0.4803]
[1755832291043,1.20522095,113450.0,113440.0,0.75856095]
[1755832291249,1.20522095,113450.0,113440.0,0.4813]
[1755832292048,1.20522095,113450.0,113440.0,0.4803]
[1755832292344,1.20622095,113450.0,113440.0,0.4803]
[1755832292543,1.20622095,113450.0,113440.0,0.75756095]
[1755832292745,0.92896,113450.0,113440.0,0.75756095]
[1755832292945,1.20622095,113450.0,113440.0,0.75756095]
[1755832293737,1.20622095,113450.0,113440.0,0.44566]
[1755832293938,1.20622095,113450.0,113440.0,0.4803]
[1755832294845,1.20622095,113450.0,113440.0,0.75756095]
[1755832295039,0.92896,113450.0,113440.0,0.75756095]
[1755832295241,1.20622095,113450.0,113440.0,0.75756095]
[1755832296345,1.22670058,113450.0,113440.0,0.75756095]
[1755832297736,1.20622095,113450.0,113440.0,0.75756095]
[1755832298138,0.94943593,113450.0,113440.0,0.75756095]
[1755832298338,0.10709593,113450.0,113440.0,0.75756095]
[1755832298543,0.10709593,113450.0,113440.0,1.0348219]
[1755832298544,0.8913,113450.0,113440.0,1.0348219]
[1755832298845,1.18903353,113450.0,113440.0,0.75756095]
[1755832299044,1.20177353,113450.0,113440.0,1.0348219]
[1755832299547,1.20177353,113450.0,113440.0,0.75856095]
[1755832300442,1.20177353,113450.0,113440.0,1.0348219]
[1755832300745,0.92351258,113450.0,113440.0,1.0348219]
[1755832300946,0.92351258,113450.0,113440.0,1.0358219]
[1755832301340,0.92351258,113450.0,113440.0,1.0348219]
[1755832301948,0.94823258,113450.0,113440.0,0.75756095]
[1755832302147,1.22549353,113450.0,113440.0,0.75756095]
[1755832303147,0.11379258,113450.0,113440.0,0.75756095]
[1755832303349,0.92595258,113450.0,113440.0,0.75756095]
[1755832303553,0.92595258,113450.0,113440.0,1.0348219]
[1755832304346,1.20321353,113450.0,113440.0,1.0348219]
[1755832304545,1.20321353,113450.0,113440.0,1.0358219]
[1755832304949,0.92595258,113450.0,113440.0,1.0348219]
[1755832305149,0.92595258,113450.0,113440.0,1.0358219]
[1755832305447,0.11379258,113450.0,113440.0,1.0358219]
[1755832305952,0.11379258,113450.0,113440.0,1.0348219]
[1755832306451,0.11379258,113450.0,113440.0,0.75756095]
[1755832307047,0.11379258,113450.0,113440.0,0.75856095]
[1755832307253,0.11379258,113450.0,113440.0,0.75956095]
[1755832307952,0.39105353,113450.0,113440.0,0.75956095]
[1755832309049,0.39105353,113450.0,113440.0,0.4823]
[1755832309250,0.39105353,113450.0,113440.0,0.75956095]
[1755832312455,0.41535353,113450.0,113440.0,0.75956095]
[1755832312755,0.41535353,113450.0,113440.0,0.44766]
[1755832313058,0.41535353,113450.0,113440.0,0.43379]
[1755832313249,0.41535353,113450.0,113440.0,0.48086]
[1755832316256,0.41535353,113450.0,113440.0,0.44732]
[1755832316461,0.41535353,113450.0,113440.0,0.48086]
[1755832316958,0.41535353,113450.0,113440.0,0.44732]
[1755832318054,0.41535353,113450.0,113440.0,0.48086]
[1755832319358,0.41535353,113450.0,113440.0,0.12006]
[1755832319861,0.77615353,113450.0,113440.0,0.12006]
[1755832320363,0.41535353,113450.0,113440.0,0.12006]
[1755832322266,0.13809258,113450.0,113440.0,0.12006]
[1755832322463,0.41535353,113450.0,113440.0,0.12006]
[1755832322663,0.69261448,113450.0,113440.0,0.05021]
[1755832322859,1.05341448,113450.0,113440.0,0.03464]
[1755832323064,1.05341448,113450.0,113440.0,0.002]
[1755832323966,1.05341448,113450.0,113440.0,0.001]
[1755832324464,1.05341448,113450.0,113440.0,0.02471]
[1755832324861,0.69261448,113450.0,113440.0,0.05696]
[1755832325058,0.69261448,113450.0,113440.0,0.07199]
[1755832325261,0.69261448,113450.0,113440.0,0.08552]
[1755832326068,0.41535353,113450.0,113440.0,0.11906]
[1755832326257,0.13809258,113450.0,113440.0,0.11906]
[1755832326462,0.41535353,113450.0,113440.0,0.11906]
[1755832327860,1.22623353,113450.0,113440.0,0.11906]
[1755832328066,1.22623353,113450.0,113440.0,0.47986]
[1755832329266,1.22623353,113450.0,113440.0,0.75712095]